bitfinex-derivatives/quotes_ETHF0:USTF0_20240830
["timestamp","ask_amount","ask_price","bid_price","bid_amount"]
[1725046441824,6.6378,2509.1,2508.7,3.2078]
[1725046442023,0.39858,2509.0,2508.8,1.1035]
[1725046442520,3.2078,2509.1,2508.8,0.7049]
[1725046442727,3.2078,2509.5,2509.4,0.39851]
[1725046443024,3.2078,2509.5,2509.4,0.39852]
[1725046443826,3.2078,2509.5,2509.4,4.38332]
[1725046444031,3.2078,2509.5,2509.4,0.39852]
[1725046445626,3.2078,2509.5,2509.4,4.38332]
[1725046446028,7.03626,2509.8,2509.6,0.39848]
[1725046446338,0.00597276,2510.0,2509.4,3.43]
[1725046446524,0.39844,2509.9,2509.7,0.39847]
[1725046446832,0.39849,2509.6,2509.4,0.39851]
[1725046447134,0.39855,2509.2,2509.1,0.6649]
[1725046447336,0.39857,2509.1,2508.9,1.08899]
[1725046447527,0.39856,2509.2,2509.0,0.39857]
[1725046448035,6.6378,2509.3,2508.9,1.08898]
[1725046448036,0.39857,2509.1,2508.9,1.08898]
[1725046448433,0.39858,2509.0,2508.9,0.6904]
[1725046448738,0.39858,2509.0,2508.9,1.28396472]
[1725046449033,7.2979,2509.3,2508.7,0.6625]
[1725046449230,3.2078,2509.3,2509.2,0.39855]
[1725046449538,4.47911,2509.5,2509.3,0.39853]
[1725046449733,0.6506,2509.5,2508.9,0.9965]
[1725046449933,0.39849,2509.6,2509.4,0.39851]
[1725046450135,6.6378,2509.7,2508.9,0.9965]
[1725046450136,0.39852,2509.4,2509.2,0.39854]
[1725046450335,6.6378,2509.7,2509.2,1.06104]
[1725046450336,0.39851,2509.5,2509.2,1.06104]
[1725046450733,6.6378,2509.7,2509.3,0.39852]
[1725046450928,0.3985,2509.6,2509.3,0.39853]
[1725046451233,7.03628,2509.7,2509.4,0.681]
[1725046451444,7.03628,2509.7,2509.5,0.3985]
[1725046451445,3.60628,2509.7,2509.5,0.3985]
[1725046451630,3.60628,2509.7,2509.4,1.07951]
[1725046451837,3.60628,2509.7,2509.5,0.3985]
[1725046452028,3.60628,2509.7,2509.4,0.681]
[1725046452227,3.2078,2509.7,2509.5,0.3985]
[1725046452538,10.6226,2509.7,2509.2,0.6625]
[1725046452737,6.6378,2509.7,2509.2,1.3407]
[1725046452931,7.03627,2509.7,2509.5,0.3985]
[1725046453132,0.39848,2509.6,2509.4,0.39851]
[1725046453431,0.39851,2509.5,2509.3,0.39853]
[1725046454231,0.99627,2509.5,2509.2,1.3407]
[1725046454535,0.39852,2509.4,2509.3,0.59352483]
[1725046454739,3.2078,2509.7,2509.3,0.59352325]
[1725046455036,3.60628,2509.7,2509.5,0.39849]
[1725046455735,3.2078,2509.7,2509.6,0.39848]
[1725046456332,0.00597276,2510.0,2509.6,4.77957928]
[1725046456333,0.40440276,2510.0,2509.6,4.77957928]
[1725046456541,0.40440276,2510.0,2509.7,1.3371]
[1725046456726,0.40440276,2510.0,2509.8,0.39845]
[1725046456727,0.00597276,2510.0,2509.8,0.39845]
[1725046456931,0.00597276,2510.0,2509.7,1.3371]
[1725046457146,0.00597276,2510.0,2509.8,0.39844]
[1725046457344,0.00597276,2510.0,2509.9,0.59347009]
[1725046457538,0.00597276,2510.0,2509.8,0.39844]
[1725046457734,0.00597276,2510.0,2509.7,1.3371]
[1725046457935,0.39844,2509.9,2509.8,0.59347905]
[1725046458239,0.39846,2509.8,2509.5,0.3985]
[1725046458441,0.39846,2509.8,2509.6,0.59349477]
[1725046458632,0.40440276,2510.0,2509.7,0.99195477]
[1725046458838,0.39844,2509.9,2509.6,0.39847]
[1725046459139,0.39844,2509.9,2509.4,4.5132]
[1725046459140,0.39845,2509.9,2509.7,0.59349318]
[1725046459341,0.40440276,2510.0,2509.8,0.59349318]
[1725046459639,0.00597276,2510.0,2509.7,0.19871733]
[1725046459844,0.00597276,2510.0,2509.9,0.39844]
[1725046460143,0.00597276,2510.0,2509.9,0.99192056]
[1725046460343,0.00597276,2510.0,2509.9,3.52651471]
[1725046460545,0.39837,2510.4,2510.3,0.39837]
[1725046460546,3.2078,2510.4,2510.3,0.39837]
[1725046460841,3.2078,2510.7,2510.6,0.39832]
[1725046461039,0.6815,2510.8,2510.6,0.39832]
[1725046461040,3.2078,2511.2,2510.6,6.92655882]
[1725046461240,3.2078,2511.2,2511.1,0.39825]
[1725046461543,3.2078,2511.2,2511.1,0.40062131]
[1725046461747,3.60603,2511.2,2511.1,1.85521129]
[1725046461941,3.2078,2511.2,2511.1,1.85521129]
[1725046462136,3.2078,2511.2,2511.1,1.85283998]
[1725046462442,3.2078,2511.2,2511.1,1.85518668]
[1725046463135,3.60603,2511.2,2511.1,1.85518668]
[1725046463536,3.60603,2511.2,2511.1,0.59327189]
[1725046463747,7.58843,2511.2,2511.1,0.59327189]
[1725046463934,7.58843,2511.2,2510.9,0.00597276]
[1725046463935,0.39826,2511.0,2510.9,0.00597276]
[1725046464133,0.39826,2511.1,2510.9,0.59925963]
[1725046464332,0.39826,2511.1,2510.9,0.00597276]
[1725046464748,0.39826,2511.1,2511.0,0.59328785]
[1725046465247,4.38066,2511.1,2510.9,0.00597276]
[1725046465446,0.39826,2511.1,2510.9,0.00597276]
[1725046467655,3.60603,2511.2,2511.0,0.39826]
[1725046467861,3.2078,2511.2,2511.0,1.06906]
[1725046468367,3.2078,2511.2,2511.0,0.6708]
[1725046468666,3.2078,2511.2,2511.1,0.39825]
[1725046468865,3.2078,2511.2,2511.1,1.03435]
[1725046469656,3.2078,2511.2,2511.1,0.6361]
[1725046469861,7.58844,2511.2,2510.9,0.40424276]
[1725046470067,3.60604,2511.2,2510.9,0.40424276]
[1725046470565,1.39392,2511.0,2510.9,0.00597276]
[1725046471073,5.37632,2511.0,2510.9,0.00597276]
[1725046472559,0.39835,2510.5,2510.1,3.43]
[1725046472759,0.39837,2510.3,2510.2,1.2707212]
[1725046472969,3.2078,2510.5,2509.7,11.022]
[1725046472970,0.9959,2510.4,2509.7,6.05178694]
[1725046473167,0.39841,2510.1,2509.8,0.99180697]
[1725046473370,0.39841,2510.1,2509.8,0.39844]
[1725046473758,0.39842,2510.0,2509.7,5.4672]
[1725046474067,0.00597276,2510.1,2509.7,4.8354]
[1725046474263,0.39845,2509.9,2509.7,4.8354]
[1725046474474,0.00597276,2510.1,2509.4,6.6378]
[1725046474475,0.39847,2509.7,2509.4,6.6378]
[1725046474659,0.39846,2509.8,2509.5,0.3985]
[1725046475458,3.43597276,2510.1,2509.5,3.9848]
[1725046475459,0.00597276,2510.1,2509.5,3.9848]
[1725046475663,0.40438276,2510.1,2509.8,0.39845]
[1725046476373,0.40439276,2510.1,2509.7,0.39847]
[1725046476675,0.39843,2510.0,2509.7,0.39847]
[1725046476879,0.39843,2510.0,2509.7,0.5945621]
[1725046477175,0.40438276,2510.1,2509.8,0.39845]
[1725046477563,0.40438276,2510.1,2509.9,0.6582]
[1725046477765,0.39842,2510.0,2509.9,0.6582]
[1725046478174,0.39849,2509.6,2509.3,4.23812]
[1725046478368,0.39848,2509.7,2509.3,4.89632]
[1725046478672,0.39848,2509.7,2509.4,0.39851]
[1725046478863,0.39848,2509.7,2509.3,4.89632]
[1725046479170,0.3985,2509.6,2509.3,4.4978]
[1725046479371,0.39846,2509.8,2509.5,0.3985]
[1725046479569,0.39847,2509.7,2509.4,0.39851]
[1725046480175,0.39847,2509.7,2509.3,8.32632]
[1725046480474,0.39847,2509.7,2509.4,0.39851]
[1725046480770,0.39846,2509.8,2509.5,0.3985]
[1725046480962,0.64,2509.9,2509.3,7.9278]
[1725046480963,0.39844,2509.9,2509.6,0.39848]
[1725046481164,0.00597276,2510.1,2509.8,0.39845]
[1725046481165,0.40438276,2510.1,2509.8,0.39845]
[1725046481368,0.00597276,2510.1,2509.8,0.39845]
[1725046481561,0.00597276,2510.1,2509.9,0.6765]
[1725046481765,0.39842,2510.0,2509.9,0.6765]
[1725046482270,9.984,2510.0,2509.3,7.2696]
[1725046482479,0.9961,2509.9,2509.4,0.59345458]
[1725046482664,0.3985,2509.5,2509.3,4.23813]
[1725046482864,0.3985,2509.5,2509.3,3.8396]
[1725046483073,0.99614,2509.8,2509.2,0.6234]
[1725046483074,3.2078,2509.6,2509.2,0.6234]
[1725046483279,0.39853,2509.4,2509.2,0.6234]
[1725046483668,0.39853,2509.3,2509.2,0.6234]
[1725046483872,4.20404,2509.6,2509.2,0.6234]
[1725046484064,4.20404,2509.6,2509.4,0.39852]
[1725046484065,3.2078,2509.6,2509.4,0.39852]
[1725046484265,0.39851,2509.5,2509.2,1.02194]
[1725046484470,0.39853,2509.3,2509.2,0.6234]
[1725046484869,0.39855,2509.2,2508.9,1.26017407]
[1725046485075,0.39855,2509.2,2509.0,0.5935118]
[1725046485377,0.39857,2509.1,2508.9,0.6752]
[1725046485570,0.39855,2509.2,2508.9,1.07379]
[1725046485771,0.99628,2509.5,2508.9,1.07379]
[1725046485969,0.39858,2509.0,2508.9,0.6752]
[1725046486280,0.99636,2509.3,2508.9,1.26874021]
[1725046486576,0.39858,2509.0,2508.9,0.6752]
[1725046489473,0.39862,2508.8,2508.6,3.43]
[1725046489677,0.39862,2508.8,2508.7,0.59357158]
[1725046489678,0.39861,2508.8,2508.7,0.59357158]
[1725046489875,0.39861,2508.8,2508.6,3.43]
[1725046490388,0.39861,2508.8,2508.6,3.82864]
[1725046490772,3.60639,2509.0,2508.6,3.43]
[1725046490976,3.2078,2509.0,2508.8,0.39861]
[1725046491171,3.60638,2509.0,2508.8,0.39861]
[1725046491572,3.2078,2509.0,2508.7,0.39863]
[1725046491782,3.60639,2509.0,2508.8,0.39861]
[1725046492079,3.60638,2509.0,2508.8,0.39861]
[1725046492479,3.2078,2509.0,2508.9,0.3986]
[1725046492882,3.2078,2509.0,2508.9,4.3842]
[1725046493077,1.63893,2509.6,2509.2,0.39854]
[1725046493078,3.2078,2509.3,2509.2,0.39854]
[1725046493681,3.2078,2509.3,2509.2,0.39855]
[1725046493883,3.2078,2509.3,2509.2,1.05545]
[1725046494275,3.2078,2509.3,2509.2,0.6569]
[1725046494474,3.2078,2509.3,2509.2,1.05545]
[1725046495275,3.2078,2509.3,2509.2,5.04105]
[1725046496582,0.39849,2509.6,2509.3,0.39853]
[1725046497888,0.39849,2509.6,2509.3,0.39852]
[1725046498189,0.39849,2509.6,2509.3,0.39853]
[1725046498683,6.6378,2509.9,2509.2,0.6569]
[1725046498883,6.6378,2509.9,2509.7,0.39846]
[1725046498884,3.2078,2509.9,2509.7,0.39846]
[1725046499094,3.2078,2509.9,2509.8,1.09865]
[1725046499288,3.2078,2509.9,2509.8,0.7002]
[1725046499494,0.39843,2510.0,2509.8,0.7002]
[1725046499876,0.99617,2509.8,2509.3,0.39853]
[1725046500201,0.99614,2509.8,2509.3,0.6833]
[1725046500581,0.39848,2509.7,2509.4,0.39851]
[1725046500890,3.60624,2509.9,2509.3,5.10963]
[1725046501080,3.60624,2509.9,2509.6,0.39847]
[1725046501284,0.00597276,2510.1,2509.7,0.19671353]
[1725046501586,0.00597276,2510.1,2510.0,0.39842]
[1725046501786,0.40438276,2510.1,2509.9,0.39844]
[1725046501989,0.00597276,2510.1,2510.0,0.39842]
[1725046502584,0.00597276,2510.1,2510.0,4.38242]
[1725046503580,0.00597276,2510.1,2510.0,3.984]
[1725046504192,0.00597276,2510.1,2509.8,2.0088]
[1725046504691,0.00597276,2510.1,2509.9,0.39844]
[1725046505087,0.00597276,2510.1,2510.0,0.39842]
[1725046507389,0.00597276,2510.1,2509.9,0.39843]
[1725046507588,0.00597276,2510.1,2509.8,2.40724]
[1725046507786,0.00597276,2510.1,2509.9,0.39844]
[1725046508586,0.40438276,2510.1,2509.8,1.08174]
[1725046509288,0.40438276,2510.1,2509.9,0.39844]
[1725046509587,0.40438276,2510.1,2510.0,0.39842]
[1725046509588,0.00597276,2510.1,2510.0,0.39842]
[1725046509781,0.00597276,2510.1,2509.9,0.39843]
[1725046509984,0.00597276,2510.1,2510.0,0.39842]
[1725046510381,0.00597276,2510.1,2509.9,0.39842]
[1725046510584,0.00597276,2510.1,2510.0,0.39842]
[1725046510987,0.00597276,2510.1,2510.0,4.97581711]
[1725046511587,0.40438276,2510.1,2510.0,0.59339711]
[1725046511795,13.19777276,2510.1,2509.6,0.6745]
[1725046512094,1.74573,2510.0,2509.7,0.99188848]
[1725046512397,3.21377276,2510.1,2509.7,0.99188848]
[1725046512398,3.21377276,2510.1,2509.9,0.39843]
[1725046512589,0.00597276,2510.1,2510.0,1.04062]
[1725046512790,0.00597276,2510.1,2510.0,2.03668]
[1725046512986,3.60612,2510.7,2510.4,0.39835]
[1725046513191,3.60612,2510.7,2510.5,0.6422]
[1725046513497,0.6548,2510.9,2510.6,0.39833]
[1725046513699,0.6548,2510.9,2510.6,1.03873]
[1725046513887,0.39825,2511.1,2510.7,0.3983]
[1725046514094,0.00597276,2511.0,2510.7,0.3983]
[1725046514292,0.40423276,2511.0,2510.6,1.03872]
[1725046514684,0.40423276,2511.0,2510.6,0.6404]
[1725046514991,0.00597276,2511.0,2510.7,0.39831]
[1725046515692,0.40423276,2511.0,2510.6,1.03872]
[1725046515890,0.00597276,2511.0,2510.7,0.99162351]
[1725046516092,0.40424276,2511.0,2510.6,0.6404]
[1725046516294,0.00597276,2511.0,2510.7,0.9916232]
[1725046516595,0.40423276,2511.0,2510.6,1.03872]
[1725046516797,0.40423276,2511.0,2510.7,0.59331393]
[1725046516993,0.00597276,2511.0,2510.7,0.39831]
[1725046517600,0.00597276,2511.0,2510.6,1.03872]
[1725046517601,0.40423276,2511.0,2510.6,1.03872]
[1725046517788,0.40423276,2511.0,2510.7,0.59331203]
[1725046517987,0.40423276,2511.0,2510.6,1.03872]
[1725046518204,0.39828,2510.9,2510.7,0.59331207]
[1725046518499,0.39828,2510.9,2510.6,0.6404]
[1725046518688,0.39828,2510.9,2510.7,0.59331865]
[1725046518892,0.39828,2510.9,2510.5,1.69351276]
[1725046519096,0.39828,2510.9,2510.6,0.59332134]
[1725046519289,0.00597276,2511.0,2510.6,0.99164134]
[1725046519290,0.40424276,2511.0,2510.6,0.99164134]
[1725046519493,0.40424276,2511.0,2510.7,0.59332134]
[1725046519693,0.40424276,2511.0,2510.6,0.39832]
[1725046519893,0.40424276,2511.0,2510.7,0.59331651]
[1725046520093,0.40424276,2511.0,2510.6,0.39832]
[1725046520295,0.39828,2510.9,2510.7,0.59331619]
[1725046520601,0.39829,2510.9,2510.5,1.29517276]
[1725046520801,0.39829,2510.9,2510.6,0.99163865]
[1725046520995,0.39829,2510.9,2510.5,1.69350276]
[1725046521197,0.39829,2510.9,2510.6,0.5933205]
[1725046521402,0.00597276,2511.0,2510.6,0.5933205]
[1725046521403,0.40424276,2511.0,2510.6,0.39833]
[1725046521697,0.40424276,2511.0,2510.7,0.39831]
[1725046521903,0.00597276,2511.0,2510.9,0.39828]
[1725046524302,0.00597276,2511.0,2510.8,0.39829]
[1725046524498,0.40424276,2511.0,2510.8,0.39829]
[1725046524899,0.00597276,2511.0,2510.5,1.29517276]
[1725046525093,0.39831,2510.7,2510.6,0.5932972]
[1725046525299,1.39415,2510.6,2510.5,0.00597276]
[1725046525497,8.23023,2510.6,2510.5,0.00597276]
[1725046529403,8.23023,2510.6,2510.1,0.3984]
[1725046529404,0.39841,2510.1,2509.8,1.03275]
[1725046529610,0.39841,2510.1,2509.9,0.59338876]
[1725046529905,0.3984,2510.2,2509.8,1.67943637]
[1725046530214,0.3984,2510.2,2509.9,0.5934028]
[1725046530396,0.39844,2509.9,2509.8,0.6444]
[1725046531196,0.39843,2510.0,2509.8,0.6444]
[1725046531597,0.39843,2510.0,2509.8,1.04285]
[1725046531797,0.39844,2509.9,2509.8,0.6444]
[1725046532610,1.2962,2510.1,2509.8,0.6444]
[1725046532815,0.3984,2510.2,2509.8,0.6444]
[1725046533309,0.3984,2510.2,2509.9,0.59342202]
[1725046533607,3.60618,2510.3,2509.8,0.6444]
[1725046533809,3.60618,2510.3,2509.9,1.64144106]
[1725046534016,3.60618,2510.3,2509.9,1.04802]
[1725046534017,0.39839,2510.2,2509.9,1.04802]
[1725046534312,3.60619,2510.3,2510.0,0.39842]
[1725046534907,0.39839,2510.2,2509.9,1.04803]
[1725046535100,3.2078,2510.3,2509.9,1.04803]
[1725046535310,0.39844,2509.9,2509.8,0.6444]
[1725046535710,0.39843,2510.0,2509.8,1.23782667]
[1725046536018,0.39843,2510.0,2509.9,0.59343164]
[1725046537307,1.39449,2510.0,2509.9,0.59343164]
[1725046537508,0.39843,2510.0,2509.9,0.59343164]
[1725046538114,1.39449,2510.0,2509.9,0.59343164]
[1725046538312,0.39843,2510.0,2509.9,0.59343164]
[1725046538820,1.39449,2510.0,2509.9,0.59343164]
[1725046539413,15.58235,2510.0,2509.9,0.59343164]
[1725046539619,0.39848,2509.6,2509.3,4.1044]
[1725046539806,0.3985,2509.5,2509.4,1.85590549]
[1725046540007,1.39476,2509.5,2509.4,1.45509414]
[1725046540310,7.70192,2509.5,2509.4,0.59346583]
[1725046540506,7.70192,2509.5,2509.4,5.83e-06]
[1725046540507,18.78042696,2509.5,2509.4,5.83e-06]
[1725046540712,18.78042696,2509.5,2509.0,0.6744]
[1725046540713,0.39856,2509.1,2509.0,0.6744]
[1725046541014,0.39856,2509.1,2508.6,4.158]
[1725046541015,0.39863,2508.7,2508.6,4.158]
[1725046541310,0.39863,2508.7,2508.6,1.26259023]
[1725046541715,4.20431,2508.9,2508.4,1.74647]
[1725046541716,0.39864,2508.6,2508.4,1.74647]
[1725046541917,0.39864,2508.7,2508.5,0.40094829]
[1725046542112,0.39864,2508.7,2508.4,1.74647]
[1725046542314,0.39862,2508.8,2508.5,0.79960902]
[1725046542513,0.39863,2508.7,2508.6,1.26264902]
[1725046542819,3.2078,2508.9,2508.6,1.26264902]
[1725046543016,3.6064,2508.9,2508.7,1.26264902]
[1725046543210,3.6064,2508.9,2508.6,0.39864]
[1725046543411,3.2078,2508.9,2508.7,1.26029741]
[1725046543613,0.39859,2509.0,2508.7,0.39862]
[1725046544321,0.39859,2509.0,2508.6,0.39863]
[1725046544512,0.39859,2509.0,2508.7,0.86166685]
[1725046544816,0.3986,2508.9,2508.5,3.82865]
[1725046545022,0.99642,2509.1,2508.6,1.26259966]
[1725046545225,0.39862,2508.8,2508.5,3.43]
[1725046545428,0.39862,2508.8,2508.5,3.82865]
[1725046545607,3.2078,2508.9,2508.5,3.82865]
[1725046545608,3.60641,2508.9,2508.6,1.66125297]
[1725046545914,3.2078,2508.9,2508.5,3.43]
[1725046546219,0.39863,2508.7,2508.5,3.43]
[1725046546419,3.2078,2508.9,2508.5,3.43]
[1725046546715,0.39863,2508.8,2508.5,3.82866]
[1725046546922,3.2078,2508.9,2508.5,3.82866]
[1725046547217,0.39862,2508.8,2508.5,3.82866]
[1725046547821,0.39863,2508.7,2508.5,3.43]
[1725046548422,4.20431,2508.9,2508.5,3.43]
[1725046548620,0.39863,2508.7,2508.5,3.43]
[1725046550421,4.20431,2508.9,2508.4,1.3478]
[1725046550614,0.39864,2508.7,2508.4,1.74647]
[1725046551211,0.6561,2508.8,2508.5,0.39865]
[1725046551422,0.39863,2508.7,2508.5,0.39866]
[1725046551719,0.39862,2508.8,2508.4,1.3478]
[1725046551910,3.6064,2508.9,2508.4,1.3478]
[1725046552112,3.2078,2508.9,2508.8,0.39861]
[1725046552313,3.2078,2508.9,2508.6,0.39864]
[1725046552614,3.6064,2508.9,2508.6,0.39863]
[1725046552820,3.6064,2508.9,2508.7,0.39863]
[1725046553320,3.2078,2508.9,2508.8,0.39861]
[1725046554721,3.2078,2508.9,2508.8,4.38421]
[1725046555022,3.2078,2508.9,2508.7,0.6544]
[1725046555230,3.2078,2508.9,2508.8,0.39861]
[1725046555733,3.2078,2508.9,2508.7,0.6544]
[1725046556023,3.2078,2508.9,2508.8,0.39861]
[1725046557627,3.2078,2508.9,2508.7,0.6544]
[1725046557628,3.2078,2508.9,2508.7,1.05302]
[1725046557816,3.2078,2508.9,2508.8,0.39861]
[1725046559829,0.39852,2509.4,2508.9,0.3986]
[1725046560127,3.8403,2509.5,2509.4,0.39852]
[1725046560128,3.2078,2509.5,2509.4,0.39852]
[1725046560319,0.00597276,2509.7,2509.3,0.99634]
[1725046560523,0.00597276,2509.7,2509.6,1.3947]
[1725046560824,0.7025,2510.2,2509.6,6.99622]
[1725046561018,0.39841,2510.1,2509.9,0.39844]
[1725046561224,0.99602,2510.1,2509.6,0.39848]
[1725046561417,0.39846,2509.8,2509.6,0.39848]
[1725046561621,3.60623,2510.0,2509.7,0.39846]
[1725046561824,0.39844,2509.9,2509.7,0.39846]
[1725046562025,0.39843,2510.0,2509.7,0.39846]
[1725046562423,0.39845,2509.8,2509.6,0.40444276]
[1725046562623,0.39844,2509.9,2509.7,0.39846]
[1725046562933,3.60623,2510.0,2509.7,0.39846]
[1725046563131,0.39844,2509.9,2509.7,0.39846]
[1725046563525,3.60623,2510.0,2509.8,0.39845]
[1725046563733,3.60623,2510.0,2509.6,0.00597276]
[1725046563734,3.2078,2510.0,2509.9,0.39844]
[1725046564231,3.2078,2510.0,2509.9,4.38244]
[1725046564432,3.2078,2510.0,2509.9,0.39844]
[1725046564933,3.2078,2510.0,2509.9,4.38244]
[1725046565137,0.00597276,2510.1,2510.0,0.39842]
[1725046565728,0.00597276,2510.1,2510.0,1.03502]
[1725046566735,0.00597276,2510.1,2510.0,1.62827755]
[1725046567131,0.00597276,2510.1,2510.0,8.44902]
[1725046567640,0.00597276,2510.1,2510.0,9.04227536]
[1725046567831,0.00597276,2510.1,2510.0,5.05827536]
[1725046568431,0.00597276,2510.1,2510.0,1.62827536]
[1725046569136,0.00597276,2510.1,2510.0,1.03502]
[1725046569327,0.00597276,2510.1,2510.0,1.62827364]
[1725046571031,0.00597276,2510.1,2510.0,1.03502]
[1725046571240,0.00597276,2510.1,2510.0,1.62827362]
[1725046571631,0.00597276,2510.1,2510.0,3.08286601]
[1725046571937,0.00597276,2510.1,2510.0,6.51286601]
[1725046572740,3.2078,2510.4,2510.3,0.39837]
[1725046573129,0.39834,2510.5,2510.3,0.39837]
[1725046573437,0.99586,2510.5,2510.0,4.46502]
[1725046573633,4.20362,2510.6,2510.1,0.59324004]
[1725046573831,0.39838,2510.3,2510.2,0.59324004]
[1725046574237,0.39838,2510.3,2510.1,0.3984]
[1725046574532,0.39837,2510.4,2510.1,0.3984]
[1725046574733,0.39837,2510.4,2510.2,0.99163252]
[1725046574935,0.39837,2510.4,2510.3,0.6334]
[1725046577337,0.39837,2510.4,2510.1,0.39839]
[1725046577338,0.39838,2510.3,2510.1,0.39839]
[1725046577533,0.39837,2510.4,2510.2,0.39839]
[1725046577933,0.99587,2510.5,2510.0,4.555]
[1725046578137,1.39437,2510.2,2510.1,0.59324998]
[1725046578434,0.39842,2510.1,2509.9,0.39844]
[1725046578636,1.91608,2510.2,2509.9,0.39844]
[1725046578842,1.91608,2510.2,2509.8,0.39844]
[1725046579032,1.91608,2510.2,2509.9,0.59328761]
[1725046579033,0.39843,2510.0,2509.9,0.59328761]
[1725046579233,0.39843,2510.0,2509.9,0.99172761]
[1725046579432,0.39842,2510.1,2510.0,0.39842]
[1725046579633,0.3984,2510.2,2510.0,0.39842]
[1725046579834,0.3984,2510.2,2509.7,12.28037]
[1725046579835,0.3984,2510.2,2510.1,0.39841]
[1725046580338,0.39841,2510.1,2510.0,0.39841]
[1725046581134,0.3984,2510.2,2510.0,0.39841]
[1725046581641,0.3984,2510.2,2509.7,12.28037]
[1725046581642,0.39841,2510.1,2509.9,0.39843]
[1725046581839,0.39841,2510.1,2509.7,12.28037]
[1725046582038,0.39841,2510.1,2509.9,0.39843]
[1725046582236,0.99595,2510.3,2509.7,7.1262]
[1725046582237,4.20375,2510.3,2509.7,7.1262]
[1725046582435,0.99598,2510.2,2509.8,0.59329418]
[1725046582632,0.39845,2509.8,2509.7,3.2078]
[1725046583336,1.39465,2509.7,2509.6,0.00597276]
[1725046583639,1.39465,2509.7,2509.3,1.03887706]
[1725046583640,1.39482,2509.4,2509.3,1.03887706]
[1725046583844,4.60262,2509.4,2509.3,1.03887706]
[1725046584137,4.60262,2509.4,2508.9,0.4714]
[1725046584138,7.59112,2509.4,2508.9,0.4714]
[1725046584340,0.4702,2509.3,2508.9,0.4714]
[1725046584745,0.86874,2509.3,2509.0,0.39858]
[1725046585541,0.39855,2509.2,2508.9,0.86999]
[1725046585739,0.87471276,2509.3,2508.9,0.4714]
[1725046585938,0.39855,2509.2,2508.9,0.86999]
[1725046586140,0.39857,2509.1,2508.9,0.4714]
[1725046587938,0.39855,2509.2,2508.9,0.86999]
[1725046588343,0.39857,2509.1,2508.9,0.4714]
[1725046588540,0.47617276,2509.3,2508.9,0.4714]
[1725046588746,0.39856,2509.2,2508.9,0.86999]
[1725046589147,0.39856,2509.1,2508.9,0.4714]
[1725046589954,0.39858,2509.0,2508.9,0.4714]
[1725046591552,4.20423,2509.1,2508.8,0.45967276]
[1725046591753,0.39859,2509.0,2508.8,1.32728276]
[1725046592050,3.2078,2509.1,2508.8,1.32728276]
[1725046592253,0.39859,2509.0,2508.8,1.32728276]
[1725046592642,0.39859,2509.0,2508.8,0.92867276]
[1725046593246,3.60637,2509.1,2508.8,0.92867276]
[1725046593443,3.60636,2509.1,2508.9,0.39859]
[1725046593853,3.60636,2509.1,2508.8,1.32727276]
[1725046594149,3.2078,2509.1,2508.9,0.99202653]
[1725046594352,3.60636,2509.1,2508.9,0.39859]
[1725046594544,3.2078,2509.1,2508.9,0.39859]
[1725046595555,3.60637,2509.1,2508.9,0.3986]
[1725046596641,3.2078,2509.1,2508.9,0.3986]
[1725046596848,3.60636,2509.1,2508.9,0.3986]
[1725046597050,3.2078,2509.1,2508.9,0.3986]
[1725046597358,3.60637,2509.1,2508.9,0.3986]
[1725046597856,3.2078,2509.1,2508.9,0.3986]
[1725046598552,3.60637,2509.1,2508.9,0.3986]
[1725046599649,3.2078,2509.1,2508.9,0.3986]
[1725046599958,0.00597276,2509.3,2509.2,0.39855]
[1725046600154,0.00597276,2509.3,2509.0,3.43]
[1725046600453,0.00597276,2509.3,2509.1,0.5934056]
[1725046600659,0.00597276,2509.3,2508.8,0.92867276]
[1725046600660,3.21377276,2509.3,2508.8,0.92867276]
[1725046600958,0.39858,2509.0,2508.9,0.59341681]
[1725046601757,0.39856,2509.1,2508.9,0.99200681]
[1725046601953,0.39856,2509.1,2508.9,0.39859]
[1725046602265,0.87436,2509.2,2509.0,0.9920124]
[1725046602453,0.99638,2509.2,2508.8,4.35867276]
[1725046602655,0.39858,2509.0,2508.9,0.59343093]
[1725046604059,0.39858,2509.0,2508.9,0.99203093]
[1725046604654,0.39858,2509.0,2508.8,4.75727276]
[1725046604860,0.39858,2509.0,2508.9,0.59343747]
[1725046606263,3.21377276,2509.3,2508.9,0.59343747]
[1725046606461,0.00597276,2509.3,2509.2,1.39493]
[1725046606763,0.00597276,2509.3,2509.2,4.21573762]
[1725046606955,0.00597276,2509.3,2509.2,7.60579528]
[1725046607159,0.00597276,2509.3,2509.2,6.60941528]
[1725046607554,0.00597276,2509.3,2509.2,2.62381528]
[1725046608258,0.00597276,2509.3,2509.2,2.22297762]
[1725046608565,0.00597276,2509.3,2509.2,6.20857762]
[1725046610058,0.00597276,2509.3,2509.2,6.60941729]
[1725046610960,0.00597276,2509.3,2509.2,5.15448967]
[1725046611161,0.00597276,2509.3,2509.2,6.2085508]
[1725046611665,0.00597276,2509.3,2509.2,2.2229508]
[1725046611867,0.00597276,2509.3,2509.2,6.2085508]
[1725046612269,0.00597276,2509.3,2509.2,2.62379276]
[1725046613673,0.00597276,2509.3,2509.2,2.22524276]
[1725046613966,0.00597276,2509.3,2509.2,2.62379276]
[1725046614168,0.00597276,2509.3,2509.2,2.22524276]
[1725046614476,0.00597276,2509.3,2509.2,0.77034728]
[1725046614658,0.40450276,2509.3,2509.2,2.22526219]
[1725046615169,0.00597276,2509.3,2509.2,2.22526219]
[1725046615474,4.39010276,2509.3,2509.2,1.85576219]
[1725046616563,0.40450276,2509.3,2509.2,1.85576219]
[1725046616969,1.40084276,2509.3,2509.2,0.59337786]
[1725046617168,4.60864276,2509.3,2509.2,0.59337786]
[1725046617376,15.59058276,2509.3,2509.2,0.59337786]
[1725046617577,1.3951,2508.9,2508.8,0.47497276]
[1725046617763,1.3951,2508.9,2508.8,1.93007165]